bitfinex/quotes_BTCUSD_20240617
["timestamp","ask_amount","ask_price","bid_price","bid_amount"]
[1718641271927,0.03890868,65234.0,65232.0,1.073089]
[1718641272150,0.03890868,65234.0,65233.0,0.766482]
[1718641272376,0.03890868,65234.0,65233.0,1.073075]
[1718641272582,0.03890868,65234.0,65233.0,1.1905825]
[1718641272818,0.03890868,65234.0,65233.0,1.531668]
[1718641273028,0.03890868,65234.0,65233.0,1.44150388]
[1718641273238,0.03890868,65234.0,65233.0,1.54150388]
[1718641273467,0.03890868,65234.0,65233.0,1.64984728]
[1718641273712,0.03890868,65234.0,65233.0,2.10280944]
[1718641273939,0.03890868,65234.0,65233.0,1.59841061]
[1718641274175,0.03890868,65234.0,65233.0,1.64841061]
[1718641274396,0.03990868,65234.0,65233.0,0.72250029]
[1718641274643,0.03990868,65234.0,65233.0,0.013]
[1718641275984,0.21009433,65234.0,65233.0,0.013]
[1718641276195,0.19263756,65234.0,65233.0,0.013]
[1718641276421,0.03990868,65234.0,65233.0,0.166296]
[1718641276647,0.03990868,65234.0,65233.0,0.80902962]
[1718641276865,0.03890868,65234.0,65233.0,1.217075]
[1718641277120,0.03990868,65234.0,65233.0,1.80093772]
[1718641277333,0.03990868,65234.0,65233.0,2.05565028]
[1718641277547,0.03890868,65234.0,65233.0,2.04265028]
[1718641277766,0.03890868,65234.0,65233.0,2.09265028]
[1718641277991,0.03990868,65234.0,65233.0,2.10565028]
[1718641278202,0.48896475,65246.0,65245.0,1.072876]
[1718641278716,0.48896475,65246.0,65241.0,0.05]
[1718641278940,0.48896475,65246.0,65245.0,0.459804]
[1718641279159,0.48896475,65246.0,65245.0,1.072876]
[1718641279383,0.48896475,65246.0,65245.0,1.18162705]
[1718641279612,0.0639,65266.0,65245.0,0.41528705]
[1718641279827,0.15272888,65265.0,65245.0,0.41528705]
[1718641280057,0.15272888,65265.0,65246.0,0.10616247]
[1718641280273,0.15272888,65265.0,65256.0,0.306483]
[1718641280522,0.15272888,65265.0,65249.0,0.306516]
[1718641280707,0.00745677,65263.0,65253.0,0.306498]
[1718641280930,0.00745677,65263.0,65250.0,0.10616086]
[1718641280931,0.01745677,65260.0,65250.0,0.153255]
[1718641281144,0.15272888,65262.0,65249.0,0.306517]
[1718641281354,0.013,65265.0,65264.0,0.153223]
[1718641281557,0.013,65265.0,65264.0,0.45967]
[1718641281780,0.48896475,65267.0,65266.0,0.153219]
[1718641281981,0.48896475,65267.0,65266.0,0.459657]
[1718641282421,0.48896475,65267.0,65266.0,1.10091777]
[1718641282632,0.48896475,65267.0,65266.0,1.40735577]
[1718641282633,0.48859072,65267.0,65266.0,1.40735577]
[1718641282838,0.0153,65283.0,65270.0,0.102]
[1718641283033,0.0153,65283.0,65271.0,0.13304905]
[1718641283237,0.0153,65283.0,65272.0,0.306409]
[1718641283410,0.0153,65283.0,65282.0,0.459544]
[1718641283665,0.0153,65283.0,65282.0,0.765907]
[1718641284200,0.51313675,65291.0,65282.0,0.102]
[1718641284418,0.51313675,65291.0,65274.0,0.2]
[1718641284419,0.49783675,65291.0,65290.0,1.072137]
[1718641284948,0.49783675,65291.0,65290.0,0.45810383]
[1718641285189,0.49783675,65291.0,65290.0,0.76442883]
[1718641285385,0.49783675,65291.0,65290.0,1.07075383]
[1718641285640,0.49783675,65291.0,65290.0,0.45810383]
[1718641285946,0.49783675,65291.0,65290.0,0.61265]
[1718641286101,0.49783675,65291.0,65290.0,0.153162]
[1718641286257,0.49783675,65291.0,65290.0,0.765812]
[1718641286464,0.49783675,65291.0,65290.0,0.459487]
[1718641286665,0.49783675,65291.0,65280.0,0.05]
[1718641286915,0.49783675,65291.0,65290.0,0.001]
[1718641287128,0.6680224,65291.0,65290.0,0.001]
[1718641287272,0.6580224,65291.0,65290.0,0.001]
[1718641287473,0.6680224,65291.0,65290.0,0.001]
[1718641287680,0.6680224,65291.0,65274.0,0.15]
[1718641287681,0.01745677,65290.0,65276.0,0.306388]
[1718641287902,0.01745677,65290.0,65274.0,0.15]
[1718641287903,0.07634112,65285.0,65269.0,0.450422]
[1718641288130,0.23462888,65289.0,65280.0,0.001]
[1718641288131,0.15272888,65284.0,65280.0,0.001]
[1718641288338,0.49783675,65291.0,65290.0,0.153162]
[1718641288550,0.00745677,65288.0,65280.0,0.001]
[1718641288723,0.49783675,65291.0,65280.0,0.001]
[1718641288928,0.65056563,65291.0,65290.0,0.153162]
[1718641289132,0.49783675,65291.0,65290.0,0.459487]
[1718641289334,0.49783675,65291.0,65290.0,0.5360693]
[1718641289604,0.49783675,65291.0,65290.0,1.072137]
[1718641290122,0.009372,65291.0,65290.0,1.072137]
[1718641290355,0.009372,65291.0,65290.0,0.459487]
[1718641290758,0.009372,65291.0,65290.0,0.765812]
[1718641290960,0.009372,65291.0,65290.0,1.072137]
[1718641291187,0.009372,65291.0,65290.0,1.2040707]
[1718641291398,0.009372,65291.0,65290.0,0.153162]
[1718641291604,0.009372,65291.0,65290.0,0.154162]
[1718641291797,0.009372,65291.0,65290.0,0.460487]
[1718641292003,0.009372,65291.0,65290.0,0.001]
[1718641292242,0.009372,65291.0,65290.0,0.154162]
[1718641292447,0.009372,65291.0,65285.0,0.306347]
[1718641292674,0.009372,65291.0,65282.0,0.05]
[1718641292906,0.009372,65291.0,65283.0,0.00612653]
[1718641293117,0.009372,65291.0,65290.0,0.765812]
[1718641293347,0.009372,65291.0,65283.0,0.01561265]
[1718641293579,0.009372,65291.0,65282.0,0.356363]
[1718641293827,0.009372,65291.0,65290.0,0.765812]
[1718641294053,0.009372,65291.0,65289.0,0.153164]
[1718641294283,0.009372,65291.0,65287.0,0.153169]
[1718641294493,0.01745677,65290.0,65283.0,0.007]
[1718641294699,0.01745677,65286.0,65283.0,0.007]
[1718641294901,0.07634112,65289.0,65283.0,0.007]
[1718641294902,0.01745677,65284.0,65283.0,0.007]
[1718641295118,0.01745677,65279.0,65274.0,0.153198]
[1718641295322,0.01745677,65279.0,65271.0,0.153205]
[1718641295529,0.00745677,65275.0,65266.0,0.153217]
[1718641295744,0.01745677,65282.0,65263.0,0.1127]
[1718641295954,0.22907,65281.0,65267.0,0.153215]
[1718641296202,0.22907,65281.0,65263.0,0.0627]
[1718641296203,0.01745677,65279.0,65265.0,0.30644]
[1718641296418,0.01734956,65275.0,65263.0,0.1127]
[1718641296637,0.01734956,65279.0,65266.0,0.306437]
[1718641296838,0.01734956,65278.0,65263.0,0.14703289]
[1718641297066,0.01734956,65272.0,65263.0,0.0627]
[1718641297276,0.15272888,65281.0,65261.0,0.0779]
[1718641297277,0.01734956,65268.0,65261.0,0.0779]
[1718641297501,0.01734956,65264.0,65260.0,0.04307349]
[1718641297728,0.01734956,65264.0,65254.0,0.385993]
[1718641297962,0.01734956,65261.0,65252.0,0.153251]
[1718641298395,0.01734956,65262.0,65252.0,0.153251]
[1718641298609,0.01734956,65258.0,65251.0,0.153253]
[1718641299040,0.01734956,65254.0,65247.0,0.153261]
[1718641299243,0.01734956,65265.0,65246.0,0.386028]
[1718641299455,0.01,65258.0,65246.0,0.0795]
[1718641299690,0.01,65258.0,65247.0,0.306526]
[1718641299691,0.01734956,65258.0,65247.0,0.306526]
[1718641299902,0.01734956,65254.0,65246.0,0.0795]
[1718641300123,0.01734956,65254.0,65245.0,0.306536]
[1718641300332,0.01734956,65258.0,65244.0,0.0627]
[1718641300538,0.01734956,65258.0,65252.0,0.153251]
[1718641300754,0.15272888,65264.0,65250.0,0.07634112]
[1718641300978,0.0806,65273.0,65257.0,0.15324]
[1718641300979,0.001,65258.0,65257.0,0.15324]
[1718641301226,0.001,65258.0,65257.0,0.8464]
[1718641301459,1.40979277,65274.0,65269.0,0.306421]
[1718641301906,1.40979277,65274.0,65273.0,0.153202]
[1718641302114,1.40979277,65274.0,65269.0,0.153211]
[1718641302319,1.40979277,65274.0,65257.0,0.0802]
[1718641302538,1.40979277,65274.0,65267.0,0.30643]
[1718641302779,0.01734956,65272.0,65263.0,0.153224]
[1718641303001,0.01734956,65269.0,65259.0,0.306469]
[1718641303221,0.00093501,65267.0,65259.0,0.153234]
[1718641303477,0.00093501,65267.0,65260.0,0.153232]
[1718641303679,0.00093501,65267.0,65257.0,0.08105]
[1718641304110,0.00093501,65267.0,65265.0,0.15322]
[1718641304526,0.00093501,65267.0,65266.0,0.153219]
[1718641305137,0.00093501,65267.0,65259.0,0.009]
[1718641305797,0.00093501,65267.0,65261.0,0.30646]
[1718641306003,0.00093501,65267.0,65266.0,0.153219]
[1718641306204,0.00093501,65267.0,65266.0,0.459657]
[1718641306451,0.00093501,65267.0,65266.0,0.153219]
[1718641306862,0.00093501,65267.0,65266.0,0.766095]
[1718641307079,0.00093501,65267.0,65266.0,0.004]
[1718641307642,0.00093501,65267.0,65266.0,0.766095]
[1718641308064,0.00093501,65267.0,65266.0,1.079533]
[1718641308953,0.00093501,65267.0,65266.0,1.465571]
[1718641309165,0.00093501,65267.0,65266.0,1.56919215]
[1718641309745,0.00093501,65267.0,65266.0,1.82892103]
[1718641309980,0.00093501,65267.0,65266.0,2.23535903]
[1718641310102,0.00093501,65267.0,65266.0,2.23035903]
[1718641310310,0.090672,65291.0,65266.0,2.23035903]
[1718641310311,0.090672,65291.0,65290.0,0.765812]
[1718641310543,0.090672,65291.0,65290.0,0.459487]
[1718641310959,0.090672,65291.0,65290.0,0.153162]
[1718641311176,0.090672,65291.0,65290.0,0.459487]
[1718641311389,0.090672,65291.0,65290.0,0.153162]
[1718641311699,0.01734956,65289.0,65283.0,0.153177]
[1718641311820,0.01734956,65286.0,65281.0,0.306363]
[1718641312021,0.090672,65291.0,65282.0,0.0306363]
[1718641312222,0.090672,65291.0,65290.0,0.459487]
[1718641312658,0.090672,65291.0,65290.0,0.460487]
[1718641312864,0.10802156,65291.0,65290.0,0.001]
[1718641313073,0.090672,65291.0,65290.0,0.001]
[1718641313289,0.16701312,65291.0,65282.0,0.15356237]
[1718641313504,0.16701312,65291.0,65284.0,0.459529]
[1718641313716,0.090672,65291.0,65290.0,0.001]
[1718641314139,0.090672,65291.0,65288.0,0.153165]
[1718641314348,0.090672,65291.0,65290.0,0.153162]
[1718641314564,0.009372,65291.0,65288.0,0.30633]
[1718641314786,0.009372,65291.0,65290.0,0.765812]
[1718641315022,0.009372,65291.0,65290.0,1.072137]
[1718641316746,0.009372,65291.0,65290.0,1.1833696]
[1718641316960,0.009372,65291.0,65290.0,1.64242348]
[1718641317160,0.009372,65291.0,65290.0,1.86663604]
[1718641317379,0.009372,65291.0,65290.0,1.96863604]
[1718641318030,0.009372,65291.0,65290.0,1.71392348]
[1718641319118,0.009372,65291.0,65290.0,1.81592348]
[1718641319542,0.009372,65291.0,65290.0,1.91592348]
[1718641319750,0.009372,65291.0,65290.0,2.27224848]
[1718641319956,0.009372,65291.0,65290.0,2.06167862]
[1718641320180,0.009372,65291.0,65290.0,2.42496104]
[1718641320393,0.009372,65291.0,65290.0,2.75964416]
[1718641320606,0.009372,65291.0,65290.0,2.87778786]
[1718641320831,0.009372,65300.0,65299.0,2.676956]
[1718641321055,0.00939401,65302.0,65301.0,0.917685]
[1718641321262,0.00093501,65311.0,65310.0,0.765577]
[1718641321489,0.00093501,65311.0,65310.0,1.22453688]
[1718641321723,0.00093501,65311.0,65310.0,0.765577]
[1718641322150,0.00093501,65311.0,65310.0,1.92653688]
[1718641322383,0.00093501,65311.0,65310.0,2.12074944]
[1718641322594,0.00054326,65311.0,65310.0,2.52898044]
[1718641322831,0.00054326,65311.0,65310.0,2.88521144]
[1718641323034,0.00093501,65321.0,65319.0,2.22985]
[1718641323244,0.00939401,65328.0,65327.0,1.261228]
[1718641323459,0.00939401,65328.0,65327.0,2.62591288]
[1718641323668,0.00939401,65328.0,65327.0,2.67591288]
[1718641323898,0.00939401,65328.0,65327.0,3.15777744]
[1718641324140,0.009372,65334.0,65332.0,1.071448]
[1718641324352,0.009372,65334.0,65332.0,1.36816846]
[1718641324551,0.009372,65334.0,65332.0,1.78230488]
[1718641324772,1e-06,65334.0,65333.0,0.202]
[1718641324992,1e-06,65334.0,65333.0,1.66966288]
[1718641325191,0.00939401,65345.0,65333.0,1.66966288]
[1718641325192,0.00939401,65345.0,65344.0,1.46518]
[1718641325393,0.00939401,65345.0,65344.0,3.08923744]
[1718641325598,0.00939401,65345.0,65344.0,3.521046]
[1718641325821,0.00939401,65345.0,65344.0,3.214974]
[1718641326030,0.00939401,65345.0,65344.0,3.521046]
[1718641326242,0.00939401,65345.0,65344.0,3.10736544]
[1718641326658,0.00939401,65345.0,65344.0,3.54839627]
[1718641326871,0.00093501,65350.0,65349.0,1.47922]
[1718641327074,0.00093501,65350.0,65349.0,1.78194888]
[1718641327286,0.009372,65357.0,65356.0,2.020156]
[1718641327497,0.009372,65357.0,65356.0,3.02925173]
[1718641327742,0.009372,65357.0,65356.0,3.45307102]
[1718641327951,0.009372,65357.0,65356.0,3.49673871]
[1718641328152,0.009372,65357.0,65356.0,3.59165029]
[1718641328367,0.0613,65388.0,65362.0,0.202]
[1718641328581,0.45325461,65390.0,65376.0,0.2]
[1718641328802,0.45804674,65388.0,65378.0,0.065]
[1718641329010,0.45325461,65390.0,65389.0,0.458791]
[1718641329219,0.0152,65399.0,65382.0,0.5]
[1718641329438,0.45325461,65406.0,65389.0,0.04050458]
[1718641329636,0.45325461,65406.0,65387.0,0.04050458]
[1718641329842,0.45325461,65406.0,65384.0,0.305882]
[1718641329843,0.45325461,65406.0,65394.0,0.152918]
[1718641330056,0.45325461,65406.0,65383.0,0.30540018]
[1718641330057,0.07634112,65396.0,65383.0,0.30540018]
[1718641330262,0.07634112,65396.0,65384.0,0.09896731]
[1718641330479,0.07634112,65402.0,65385.0,0.15272888]
[1718641330689,0.45325461,65406.0,65395.0,0.30583]
[1718641330892,0.48846475,65409.0,65397.0,0.065]
[1718641331119,1.37458263,65412.0,65397.0,0.065]
[1718641331120,0.45325461,65412.0,65399.0,0.0823]
[1718641331333,0.45325461,65412.0,65400.0,0.15272888]
[1718641331806,0.45325461,65412.0,65401.0,0.305801]
[1718641332015,0.01734956,65406.0,65398.0,0.7]
[1718641332216,0.07634112,65407.0,65398.0,0.2]
[1718641332418,0.45325461,65412.0,65406.0,0.305778]
[1718641332647,0.01734956,65411.0,65402.0,0.1529]
[1718641332861,0.13784112,65415.0,65407.0,0.305775]
[1718641333081,0.13784112,65415.0,65398.0,0.2]
[1718641333310,0.01734956,65411.0,65405.0,0.152892]
[1718641333517,0.01734956,65411.0,65399.0,0.15272888]
[1718641333518,0.01734956,65406.0,65399.0,0.15272888]
[1718641333724,0.07634112,65408.0,65406.0,0.001]
[1718641333947,0.13784112,65415.0,65406.0,0.001]
[1718641334173,0.07634112,65408.0,65393.0,0.15272888]
[1718641334414,0.13784112,65415.0,65393.0,0.15272888]
[1718641334415,0.13784112,65415.0,65404.0,0.152895]
[1718641334625,0.13784112,65415.0,65394.0,0.08000289]
[1718641334832,0.01734956,65414.0,65398.0,0.305816]
[1718641335050,0.01734956,65414.0,65403.0,0.152896]
[1718641335261,0.01734956,65414.0,65388.0,0.25]
[1718641335262,0.01734956,65400.0,65388.0,0.25]
[1718641335485,0.01734956,65402.0,65392.0,0.15272888]
[1718641335724,0.01734956,65405.0,65396.0,0.152913]
[1718641335939,0.01734956,65405.0,65388.0,0.2]
[1718641335940,0.01734956,65397.0,65388.0,0.2]
[1718641336153,0.01734956,65404.0,65388.0,0.35272888]
[1718641336360,0.01734956,65400.0,65395.0,0.152914]
[1718641336567,0.01734956,65405.0,65395.0,0.2293742]
[1718641336801,0.01734956,65397.0,65391.0,0.014]
[1718641337022,0.01734956,65404.0,65388.0,0.15272888]
[1718641337239,0.07634112,65408.0,65389.0,0.00376519]
[1718641337452,0.07634112,65408.0,65388.0,0.15272888]
[1718641337453,0.01734956,65393.0,65388.0,0.014]
[1718641337668,0.1447,65400.0,65388.0,0.014]
[1718641337872,0.15272888,65399.0,65388.0,0.014]
[1718641338115,0.1447,65400.0,65389.0,0.00609174]
[1718641338356,0.0152,65406.0,65390.0,0.15879724]
[1718641338357,0.0753,65406.0,65390.0,0.15879724]
[1718641338571,0.01734956,65405.0,65391.0,0.02747972]
[1718641338792,0.07634112,65393.0,65380.0,0.2]
[1718641339012,0.07634112,65400.0,65391.0,0.014]
[1718641339013,0.01734956,65397.0,65391.0,0.014]
[1718641339226,0.01734956,65393.0,65391.0,0.014]
[1718641339445,0.07634112,65400.0,65391.0,0.014]
[1718641339446,0.09369068,65392.0,65391.0,0.01378638]
[1718641339676,0.09369068,65392.0,65374.0,0.121199]
[1718641339677,0.01734956,65384.0,65374.0,0.06]
[1718641339905,0.0601,65387.0,65375.0,0.61077562]
[1718641340131,0.0601,65387.0,65379.0,0.305908]
[1718641340347,0.01734956,65393.0,65383.0,0.152944]
[1718641340558,0.0601,65395.0,65384.0,0.00611705]
[1718641340559,0.01734956,65392.0,65384.0,0.00611705]
[1718641340777,0.07744956,65395.0,65391.0,0.007]
[1718641341016,0.0601,65395.0,65391.0,0.007]
[1718641341231,0.0637,65403.0,65391.0,0.007]
[1718641341438,0.0637,65403.0,65392.0,0.15272888]
[1718641341649,0.09974956,65405.0,65392.0,0.26338707]
[1718641341864,0.09974956,65405.0,65392.0,0.56923207]
[1718641342075,0.0824,65405.0,65392.0,0.56923207]
[1718641342280,0.0824,65405.0,65392.0,0.26338707]
[1718641342493,0.0824,65405.0,65399.0,0.152906]
[1718641342698,0.0637,65410.0,65400.0,0.30885624]
[1718641342917,0.07104956,65410.0,65401.0,0.0061152]
[1718641343122,0.08104956,65410.0,65401.0,0.0061152]
[1718641343342,0.0637,65410.0,65401.0,0.0061152]
[1718641343545,0.56781475,65412.0,65401.0,0.15884408]
[1718641343743,0.001,65405.0,65401.0,0.15884408]
[1718641344018,0.001,65405.0,65402.0,0.04656551]
[1718641344453,0.01734956,65408.0,65401.0,0.15272888]
[1718641344670,0.48931475,65412.0,65401.0,0.15272888]
[1718641344671,0.01734956,65402.0,65401.0,0.012]
[1718641345113,0.09554956,65402.0,65401.0,0.012]
[1718641345332,0.15714956,65402.0,65401.0,0.012]
[1718641345529,0.92165156,65402.0,65401.0,0.012]
[1718641345747,0.15714956,65402.0,65401.0,0.012]
[1718641345954,0.1398,65402.0,65396.0,0.152914]
[1718641346153,0.01734956,65403.0,65396.0,0.19860418]
[1718641346355,0.01734956,65404.0,65402.0,0.011]
[1718641346576,0.01734956,65403.0,65402.0,0.011]
[1718641346796,0.01734956,65403.0,65399.0,0.152906]
[1718641347020,0.0616,65408.0,65399.0,0.09172789]
[1718641347234,0.48931475,65412.0,65399.0,0.09172789]
[1718641347235,0.00085,65412.0,65411.0,0.458637]
[1718641347459,0.00085,65412.0,65411.0,0.15272888]
[1718641347887,0.00085,65412.0,65411.0,0.30560788]
[1718641348107,0.00085,65412.0,65411.0,0.91712388]
[1718641348334,0.00085,65412.0,65411.0,0.24444127]
[1718641348540,0.00085,65412.0,65411.0,0.15272888]
[1718641348747,0.00085,65412.0,65411.0,0.30560788]
[1718641348952,0.1464,65427.0,65412.0,0.152876]
[1718641349184,0.1464,65427.0,65413.0,0.25553065]
[1718641349384,0.1464,65427.0,65414.0,0.11089498]
[1718641349385,0.03062946,65419.0,65414.0,0.11089498]
[1718641349536,0.07634112,65418.0,65414.0,0.11089498]
[1718641349745,0.0132799,65419.0,65415.0,0.11089498]
[1718641349943,0.01734956,65417.0,65414.0,0.152871]
[1718641350148,0.0132799,65419.0,65414.0,0.0472621]
[1718641350347,0.01734956,65417.0,65407.0,0.15272888]
[1718641350554,0.0132799,65419.0,65413.0,0.014]
[1718641350749,0.01734956,65415.0,65414.0,0.11051305]
[1718641350972,0.01734956,65417.0,65414.0,0.11051305]
[1718641351166,0.01734956,65418.0,65414.0,0.11051305]
[1718641351375,0.01734956,65418.0,65414.0,0.15212564]
[1718641351753,0.01734956,65417.0,65414.0,0.04161259]
[1718641351928,0.01734956,65416.0,65413.0,0.15272888]
[1718641352104,0.01734956,65414.0,65402.0,0.00917715]
[1718641352303,0.1661429,65419.0,65411.0,0.152878]
[1718641352304,0.0132799,65419.0,65411.0,0.152878]
[1718641352521,0.01734956,65414.0,65403.0,0.15272888]
[1718641352726,0.0132799,65419.0,65403.0,0.15272888]
[1718641352727,0.01734956,65405.0,65404.0,0.1108689]
[1718641353130,0.01734956,65402.0,65392.0,0.0768]
[1718641353328,0.01734956,65400.0,65394.0,0.152918]
[1718641353605,0.01734956,65402.0,65400.0,0.152904]
[1718641353813,0.01734956,65399.0,65394.0,0.15272888]
[1718641354016,0.01734956,65399.0,65395.0,0.11270963]
[1718641354327,0.01734956,65402.0,65400.0,0.152902]
[1718641354459,0.1429,65409.0,65404.0,0.152895]
[1718641354460,0.01734956,65406.0,65404.0,0.152895]
[1718641354667,0.01734956,65402.0,65396.0,0.15272888]
[1718641354869,0.01734956,65400.0,65397.0,0.1121853]
[1718641355278,0.01734956,65400.0,65382.0,0.03067]
[1718641355485,0.1429,65409.0,65382.0,0.03067]
[1718641355486,0.01734956,65403.0,65386.0,0.07634112]
[1718641355683,0.01734956,65403.0,65402.0,0.1529]
[1718641355871,0.01734956,65406.0,65403.0,0.152896]
[1718641356067,0.1429,65409.0,65403.0,0.458692]
[1718641356068,0.01734956,65404.0,65403.0,0.458692]
[1718641356294,0.01734956,65407.0,65404.0,0.152894]
[1718641356493,0.1429,65409.0,65406.0,0.15289]
[1718641356664,0.1429,65409.0,65393.0,0.23022888]
[1718641356888,0.01734956,65402.0,65394.0,0.2627588]
[1718641357099,0.1429,65409.0,65395.0,0.11002992]
[1718641357100,0.01734956,65406.0,65395.0,0.11002992]
[1718641357306,0.01734956,65404.0,65399.0,0.305812]
[1718641357506,0.01734956,65404.0,65400.0,0.152905]
[1718641357894,0.1429,65409.0,65401.0,0.11002992]
[1718641358046,0.48846475,65413.0,65403.0,0.305793]
[1718641358221,0.48846475,65413.0,65407.0,0.305776]
[1718641358441,0.01734956,65410.0,65408.0,0.11614435]
[1718641358644,0.50581431,65413.0,65412.0,0.305754]
[1718641358856,0.50581431,65413.0,65410.0,0.152881]
[1718641358857,0.48846475,65413.0,65410.0,0.152881]
[1718641359071,0.48846475,65413.0,65403.0,0.15272888]
[1718641359280,0.48846475,65413.0,65412.0,0.458631]
[1718641359473,0.50581431,65413.0,65412.0,0.458631]
[1718641359692,0.48846475,65413.0,65412.0,0.152877]
[1718641359876,0.01734956,65410.0,65404.0,0.17460695]
[1718641360036,0.01734956,65410.0,65405.0,0.10496121]
[1718641360237,0.48846475,65413.0,65412.0,0.152877]
[1718641360446,0.48846475,65413.0,65412.0,0.458631]
[1718641360657,0.48846475,65413.0,65412.0,0.152877]
[1718641360852,0.48846475,65413.0,65408.0,0.458658]
[1718641361078,0.48846475,65413.0,65406.0,0.1806857]
[1718641361079,0.48846475,65413.0,65412.0,0.458631]
[1718641361280,0.48846475,65413.0,65406.0,0.15272888]
[1718641361498,0.48846475,65413.0,65407.0,0.10288947]
[1718641361499,0.01734956,65410.0,65407.0,0.10288947]
[1718641361704,0.48846475,65413.0,65407.0,0.10288947]
[1718641361705,0.50581431,65413.0,65407.0,0.10288947]
[1718641361903,0.48846475,65413.0,65412.0,0.305754]
[1718641362101,0.48846475,65413.0,65412.0,0.15272888]
[1718641362315,0.48846475,65413.0,65412.0,0.152877]
[1718641362702,0.48846475,65413.0,65407.0,0.152888]
[1718641362879,0.48846475,65413.0,65410.0,0.305761]
[1718641363091,0.01734956,65410.0,65407.0,0.15272888]
[1718641363297,0.01734956,65410.0,65408.0,0.10057512]
[1718641363521,0.01734956,65407.0,65405.0,0.152893]
[1718641363721,0.48846475,65413.0,65412.0,0.152877]
[1718641363888,0.01734956,65410.0,65407.0,0.004]
[1718641364088,0.01734956,65410.0,65409.0,0.152884]
[1718641364289,0.48846475,65413.0,65409.0,0.305768]
[1718641364507,0.01734956,65410.0,65405.0,0.30562088]
[1718641364684,0.48846475,65413.0,65406.0,0.10137608]
[1718641364885,0.01734956,65407.0,65405.0,0.014]
[1718641365086,0.01734956,65406.0,65405.0,0.014]
[1718641365319,0.01544956,65407.0,65405.0,0.014]
[1718641365480,0.01544956,65406.0,65405.0,0.014]
[1718641365676,0.01544956,65407.0,65405.0,0.014]
[1718641365889,0.40903308,65406.0,65405.0,0.014]
[1718641366329,0.01544956,65399.0,65393.0,0.00917839]
[1718641366525,0.01544956,65399.0,65396.0,0.152913]
[1718641366742,0.01544956,65394.0,65390.0,0.305855]
[1718641366954,0.07634112,65406.0,65391.0,0.34955607]
[1718641366955,0.01544956,65392.0,65391.0,0.34955607]
[1718641367176,0.01544956,65392.0,65391.0,0.35049107]
[1718641367371,0.07634112,65406.0,65391.0,0.35049107]
[1718641367372,0.01544956,65395.0,65391.0,0.35049107]
[1718641367584,0.01544956,65398.0,65397.0,0.458736]
[1718641367789,0.01544956,65398.0,65393.0,0.305842]
[1718641368010,0.01544956,65400.0,65397.0,0.305824]
[1718641368219,0.01544956,65407.0,65400.0,0.305808]
[1718641368428,0.00085,65410.0,65393.0,0.305842]
[1718641368429,0.01544956,65403.0,65393.0,0.305842]
[1718641368669,0.00085,65410.0,65394.0,0.35633551]
[1718641368670,0.01544956,65407.0,65394.0,0.35633551]
[1718641368864,0.00085,65410.0,65407.0,0.152888]
[1718641368865,0.01629956,65410.0,65407.0,0.152888]
[1718641369062,0.01629956,65410.0,65396.0,0.0642]
[1718641369063,0.01544956,65407.0,65396.0,0.0642]
[1718641369266,0.31724279,65406.0,65401.0,0.152902]
[1718641369542,0.01629956,65410.0,65402.0,0.15884406]
[1718641369766,0.01629956,65410.0,65409.0,0.458652]
[1718641369767,0.00085,65410.0,65409.0,0.458652]
[1718641369981,0.00085,65410.0,65409.0,0.86545399]
[1718641370210,0.00085,65410.0,65409.0,1.17122199]
[1718641370431,0.00085,65410.0,65409.0,1.01818287]
[1718641370869,0.00085,65410.0,65409.0,1.1126857]
[1718641371506,0.00085,65410.0,65409.0,0.8069177]
[1718641371721,0.00085,65410.0,65409.0,1.1216857]
[1718641372160,0.00085,65410.0,65409.0,1.49619436]
[1718641372613,0.00085,65410.0,65409.0,1.50537168]
[1718641372839,0.00085,65410.0,65409.0,0.51932702]
[1718641373060,0.00085,65410.0,65409.0,0.8088177]
[1718641373271,0.00085,65410.0,65409.0,1.1216857]
[1718641373491,0.00085,65410.0,65409.0,1.4274537]
[1718641373940,0.00085,65410.0,65409.0,1.4184537]
[1718641374151,0.00085,65410.0,65409.0,1.21542707]
[1718641374358,0.00085,65410.0,65409.0,0.8300948]
[1718641374801,0.00085,65410.0,65409.0,0.3714428]
[1718641374998,0.01629956,65410.0,65409.0,0.26293997]
[1718641375202,0.01629956,65410.0,65409.0,0.71241487]
[1718641375203,0.00085,65410.0,65409.0,0.71241487]
[1718641375418,0.00085,65410.0,65409.0,1.01818287]
[1718641375630,0.00085,65410.0,65409.0,1.32395087]
[1718641375855,0.00085,65410.0,65409.0,1.41844995]
[1718641376066,0.00085,65410.0,65409.0,1.32395087]
[1718641376293,0.00085,65410.0,65409.0,1.33795087]
[1718641376503,0.00085,65410.0,65409.0,1.58705621]
[1718641376739,0.00085,65410.0,65409.0,1.57305621]
[1718641376945,0.00085,65410.0,65409.0,1.95652421]
[1718641377161,0.00085,65410.0,65409.0,1.72385621]
[1718641377377,0.00085,65410.0,65409.0,1.79225879]
[1718641377603,0.00085,65410.0,65409.0,1.71175621]
[1718641377812,0.00085,65410.0,65409.0,1.78015879]
[1718641378014,0.00085,65410.0,65409.0,1.79415879]
[1718641378219,0.00085,65410.0,65409.0,1.81505965]
[1718641378433,0.00085,65410.0,65409.0,1.79423883]
[1718641378650,0.00085,65410.0,65409.0,1.72575621]
[1718641378897,0.00085,65410.0,65409.0,1.74875621]
[1718641379104,0.00085,65410.0,65409.0,1.84005264]
[1718641379306,0.00085,65410.0,65409.0,1.74875621]
[1718641379526,0.00085,65410.0,65409.0,1.73475621]
[1718641379730,0.00085,65410.0,65409.0,1.74875621]
[1718641379934,0.00085,65410.0,65409.0,1.8172175]
[1718641380144,0.00085,65410.0,65409.0,2.05452421]
[1718641380358,0.00085,65410.0,65409.0,1.80320608]
[1718641380556,0.00085,65410.0,65409.0,2.12297408]
[1718641381198,0.00085,65410.0,65409.0,2.13182064]
[1718641381426,0.00085,65410.0,65409.0,2.18139222]
[1718641381632,0.00085,65410.0,65409.0,2.28339286]
[1718641381839,0.00085,65410.0,65409.0,2.12295964]
[1718641382261,0.00085,65410.0,65409.0,2.22495228]
[1718641382691,0.00085,65410.0,65409.0,2.26710689]
[1718641382899,0.00085,65410.0,65409.0,1.96133889]
[1718641383107,0.00085,65410.0,65409.0,1.86791961]
[1718641383320,0.00085,65410.0,65409.0,2.17368761]
[1718641383545,0.00085,65410.0,65409.0,1.99050229]